Department family,Entity,Date,Expense type,Expense area,Supplier,Transaction number,Amount
Department of Health,Leicestershire Partnership NHS Trust,01/10/18,Crs_NHS_LT1y -Resus Inventory Supplied.,Balance Sheet Collection,NHS SUPPLY CHAIN (ST1450),1018125447,41544.13
Department of Health,Leicestershire Partnership NHS Trust,01/10/18,Med GP Trainees,Medical Trainees,ST.HELENS & KNOWSLEY NHS TRUST,16778556,60000.00
Department of Health,Leicestershire Partnership NHS Trust,02/10/18,GP IT Expenditure,Area Team,DELL COMPUTERS,7402471510,26400.00
Department of Health,Leicestershire Partnership NHS Trust,02/10/18,GP IT Expenditure,Area Team,DELL COMPUTERS,7402471563,29743.20
Department of Health,Leicestershire Partnership NHS Trust,02/10/18,GP IT Expenditure,Area Team,DELL COMPUTERS,7402463279,28071.60
Department of Health,Leicestershire Partnership NHS Trust,02/10/18,WIP Project Not in BS - Information Technology,Work in Progress,DELL COMPUTERS,7402471887,28911.60
Department of Health,Leicestershire Partnership NHS Trust,02/10/18,GP IT Expenditure,Area Team,DELL COMPUTERS,7402471775,29743.20
Department of Health,Leicestershire Partnership NHS Trust,02/10/18,GP IT Expenditure,Area Team,EUROPEAN ELECTRONIQUE,0001558028,28308.00
Department of Health,Leicestershire Partnership NHS Trust,02/10/18,GP IT Expenditure,Area Team,EUROPEAN ELECTRONIQUE,0001558031,31827.60
Department of Health,Leicestershire Partnership NHS Trust,02/10/18,Network Costs - WAN Maint,HIS Infrastructure,VIRGIN MEDIA BUSINESS,262421-147,48260.70
Department of Health,Leicestershire Partnership NHS Trust,02/10/18,Contract : Accomodation,Out of County Income - Inpateints Project,TURNING POINT,SI-TPS-00019944,48353.83
Department of Health,Leicestershire Partnership NHS Trust,03/10/18,FP10'S,Adult City Central CMHT - St Peters,NHS BUS SERVICES AUTHORITY,1000056982,373.30
Department of Health,Leicestershire Partnership NHS Trust,03/10/18,FP10'S,Adult City Drugs,NHS BUS SERVICES AUTHORITY,1000056982,10452.44
Department of Health,Leicestershire Partnership NHS Trust,03/10/18,FP10'S,Adult County Drugs,NHS BUS SERVICES AUTHORITY,1000056982,30890.68
Department of Health,Leicestershire Partnership NHS Trust,03/10/18,FP10'S,CAMHS County Outpatients,NHS BUS SERVICES AUTHORITY,1000056982,16985.21
Department of Health,Leicestershire Partnership NHS Trust,03/10/18,FP10'S,Children Services Medical,NHS BUS SERVICES AUTHORITY,1000056982,6346.12
Department of Health,Leicestershire Partnership NHS Trust,03/10/18,FP10'S,Dementia Related Drugs and Investigations,NHS BUS SERVICES AUTHORITY,1000056982,5972.83
Department of Health,Leicestershire Partnership NHS Trust,03/10/18,FP10'S,Eating Disorders Outpatient Service,NHS BUS SERVICES AUTHORITY,1000056982,933.25
Department of Health,Leicestershire Partnership NHS Trust,03/10/18,FP10'S,Forensic Services - Community,NHS BUS SERVICES AUTHORITY,1000056982,186.65
Department of Health,Leicestershire Partnership NHS Trust,03/10/18,FP10'S,Leicestershire Psych-oncology Service,NHS BUS SERVICES AUTHORITY,1000056982,93.33
Department of Health,Leicestershire Partnership NHS Trust,03/10/18,FP10'S,PIER Team - Early Intervention Services,NHS BUS SERVICES AUTHORITY,1000056982,15492.01
Department of Health,Leicestershire Partnership NHS Trust,03/10/18,FP10'S,Pharmacy,NHS BUS SERVICES AUTHORITY,1000056982,1399.88
Department of Health,Leicestershire Partnership NHS Trust,03/10/18,FP10'S,Snr Med Staff (Inc Med Reps),NHS BUS SERVICES AUTHORITY,1000056982,4199.64
Department of Health,Leicestershire Partnership NHS Trust,03/10/18,FP10'S,Adult City Central CMHT - St Peters,NHS BUS SERVICES AUTHORITY,1000057317,575.35
Department of Health,Leicestershire Partnership NHS Trust,03/10/18,FP10'S,Adult City Drugs,NHS BUS SERVICES AUTHORITY,1000057317,10452.21
Department of Health,Leicestershire Partnership NHS Trust,03/10/18,FP10'S,Adult County Drugs,NHS BUS SERVICES AUTHORITY,1000057317,28479.88
Department of Health,Leicestershire Partnership NHS Trust,03/10/18,FP10'S,CAMHS County Outpatients,NHS BUS SERVICES AUTHORITY,1000057317,15438.59
Department of Health,Leicestershire Partnership NHS Trust,03/10/18,FP10'S,Children Services Medical,NHS BUS SERVICES AUTHORITY,1000057317,6520.64
Department of Health,Leicestershire Partnership NHS Trust,03/10/18,FP10'S,Dementia Related Drugs and Investigations,NHS BUS SERVICES AUTHORITY,1000057317,5849.38
Department of Health,Leicestershire Partnership NHS Trust,03/10/18,FP10'S,Eating Disorders Outpatient Service,NHS BUS SERVICES AUTHORITY,1000057317,1150.70
Department of Health,Leicestershire Partnership NHS Trust,03/10/18,FP10'S,Forensic Services - Community,NHS BUS SERVICES AUTHORITY,1000057317,191.78
Department of Health,Leicestershire Partnership NHS Trust,03/10/18,FP10'S,Leicestershire Psych-oncology Service,NHS BUS SERVICES AUTHORITY,1000057317,479.46
Department of Health,Leicestershire Partnership NHS Trust,03/10/18,FP10'S,PIER Team - Early Intervention Services,NHS BUS SERVICES AUTHORITY,1000057317,21000.31
Department of Health,Leicestershire Partnership NHS Trust,03/10/18,FP10'S,Pharmacy,NHS BUS SERVICES AUTHORITY,1000057317,863.03
Department of Health,Leicestershire Partnership NHS Trust,03/10/18,FP10'S,Snr Med Staff (Inc Med Reps),NHS BUS SERVICES AUTHORITY,1000057317,4890.48
Department of Health,Leicestershire Partnership NHS Trust,03/10/18,Occupational Health,HR Operations,UHL NHS TRUST (RWE),L0216277,26622.00
Department of Health,Leicestershire Partnership NHS Trust,03/10/18,Services / Recharges from NHS Trusts,Inter Unit I & E Distribution,UHL NHS TRUST (RWE),L0216283,179992.55
Department of Health,Leicestershire Partnership NHS Trust,03/10/18,Unitary Payment,"The Agnes Unit (AKA Assessment and Treatment Centre) (P85, LPT)",ARDEN PARTNERSHIP (LEICESTER),SI0015,110741.24
Department of Health,Leicestershire Partnership NHS Trust,03/10/18,External Data Processing / Storage,Records & information Governance,C & V DATA MANAGEMENT SRV LTD,0065005,30740.87
Department of Health,Leicestershire Partnership NHS Trust,03/10/18,Unitary Payment,"The Agnes Unit (AKA Assessment and Treatment Centre) (P85, LPT)",ARDEN PARTNERSHIP (LEICESTER),SI0012,114431.10
Department of Health,Leicestershire Partnership NHS Trust,03/10/18,PropCo Estates Management,Melton Mowbray Hospital (previously St. Mary's) (PROPCO),NHS PROPERTY SERVICES LTD,00000001/H106729,41498.93
Department of Health,Leicestershire Partnership NHS Trust,03/10/18,CONSULTANT HONOURARY,CAMHS CITY TEAM,UNIVERSITY OF LEICESTER,2230104177,5878.08
Department of Health,Leicestershire Partnership NHS Trust,03/10/18,CONSULTANT HONOURARY,Medical Director - Hq Report,UNIVERSITY OF LEICESTER,2230104177,103180.84
Department of Health,Leicestershire Partnership NHS Trust,03/10/18,CONSULTANT,Medical Trainees,UNIVERSITY OF LEICESTER,2230104177,9631.50
Department of Health,Leicestershire Partnership NHS Trust,03/10/18,SPECIALITY TRAINING 4-6 (ST 4-6),Medical Trainees,UNIVERSITY OF LEICESTER,2230104177,14000.00
Department of Health,Leicestershire Partnership NHS Trust,03/10/18,PSYCHOLOGIST - BAND 8D,Psychology Students,UNIVERSITY OF LEICESTER,2230104177,1499.00
Department of Health,Leicestershire Partnership NHS Trust,03/10/18,CONSULTANT,Service Increment For Teaching Income (SIFT),UNIVERSITY OF LEICESTER,2230104177,9631.50
Department of Health,Leicestershire Partnership NHS Trust,04/10/18,NURSE - BAND 2 - AGENCY,Beechwood Ward,HCL NURSING,MAN28559,233.33
Department of Health,Leicestershire Partnership NHS Trust,04/10/18,Nurse - Band 6 -Agency,City East CMHT MHSOP,HCL NURSING,MAN28559,836.93
Department of Health,Leicestershire Partnership NHS Trust,04/10/18,NURSE - BAND 5 - AGENCY,City ICS,HCL NURSING,MAN28559,2617.77
Department of Health,Leicestershire Partnership NHS Trust,04/10/18,NURSE - BAND 5 - AGENCY,City Planned Care - East,HCL NURSING,MAN28559,8604.54
Department of Health,Leicestershire Partnership NHS Trust,04/10/18,NURSE - BAND 5 - AGENCY,City Planned Care - West,HCL NURSING,MAN28559,2928.47
Department of Health,Leicestershire Partnership NHS Trust,04/10/18,Nurse - Band 6 -Agency,City West CMHT MHSOP,HCL NURSING,MAN28559,1069.88
Department of Health,Leicestershire Partnership NHS Trust,04/10/18,NURSE - BAND 2 - AGENCY,Coalville Snibston Ward,HCL NURSING,MAN28559,965.69
Department of Health,Leicestershire Partnership NHS Trust,04/10/18,NURSE - BAND 5 - AGENCY,Coalville Snibston Ward,HCL NURSING,MAN28559,419.12
Department of Health,Leicestershire Partnership NHS Trust,04/10/18,NURSE - BAND 2 - AGENCY,Coalville Ward 2,HCL NURSING,MAN28559,1420.14
Department of Health,Leicestershire Partnership NHS Trust,04/10/18,NURSE - BAND 5 - AGENCY,Dalgliesh Ward,HCL NURSING,MAN28559,2322.09
Department of Health,Leicestershire Partnership NHS Trust,04/10/18,NURSE - BAND 3 - AGENCY,East Planned Care - Blaby/Lutterworth,HCL NURSING,MAN28559,936.58
Department of Health,Leicestershire Partnership NHS Trust,04/10/18,NURSE - BAND 5 - AGENCY,East Planned Care - Blaby/Lutterworth,HCL NURSING,MAN28559,212.99
Department of Health,Leicestershire Partnership NHS Trust,04/10/18,NURSE - BAND 5 - AGENCY,"East Planned Care - Melton,Syston,Rutland",HCL NURSING,MAN28559,1742.81
Department of Health,Leicestershire Partnership NHS Trust,04/10/18,NURSE - BAND 5 - AGENCY,"East Planned Care - Oadby,Wigston & Harborough",HCL NURSING,MAN28559,1041.05
Department of Health,Leicestershire Partnership NHS Trust,04/10/18,NURSE - BAND 5 - AGENCY,Evening Service,HCL NURSING,MAN28559,665.71
Department of Health,Leicestershire Partnership NHS Trust,04/10/18,NURSE - BAND 2 - AGENCY,Fielding Palmer Nursing,HCL NURSING,MAN28559,436.50
Department of Health,Leicestershire Partnership NHS Trust,04/10/18,NURSE - BAND 5 - AGENCY,Fielding Palmer Nursing,HCL NURSING,MAN28559,3306.74
Department of Health,Leicestershire Partnership NHS Trust,04/10/18,NURSE - BAND 2 - AGENCY,Gwendolen Ward,HCL NURSING,MAN28559,1029.25
Department of Health,Leicestershire Partnership NHS Trust,04/10/18,NURSE - BAND 2 - AGENCY,H&B Comm Hosp East Ward,HCL NURSING,MAN28559,587.10
Department of Health,Leicestershire Partnership NHS Trust,04/10/18,NURSE - BAND 5 - AGENCY,H&B Comm Hosp East Ward,HCL NURSING,MAN28559,1823.73
Department of Health,Leicestershire Partnership NHS Trust,04/10/18,NURSE - BAND 2 - AGENCY,H&B Comm Hosp North Ward,HCL NURSING,MAN28559,2803.06
Department of Health,Leicestershire Partnership NHS Trust,04/10/18,NURSE - BAND 5 - AGENCY,H&B Comm Hosp North Ward,HCL NURSING,MAN28559,772.13
Department of Health,Leicestershire Partnership NHS Trust,04/10/18,NURSE - BAND 2 - AGENCY,Lough Swithland Ward,HCL NURSING,MAN28559,635.32
Department of Health,Leicestershire Partnership NHS Trust,04/10/18,NURSE - BAND 5 - AGENCY,Lough Swithland Ward,HCL NURSING,MAN28559,844.72
Department of Health,Leicestershire Partnership NHS Trust,04/10/18,NURSE - BAND 5 - AGENCY,North West ICS,HCL NURSING,MAN28559,471.25
Department of Health,Leicestershire Partnership NHS Trust,04/10/18,NURSE - BAND 2 - AGENCY,Rutland Ward Nursing,HCL NURSING,MAN28559,168.41
Department of Health,Leicestershire Partnership NHS Trust,04/10/18,NURSE - BAND 5 - AGENCY,South East ICS,HCL NURSING,MAN28559,6925.01
Department of Health,Leicestershire Partnership NHS Trust,04/10/18,NURSE - BAND 2 - AGENCY,St Lukes Stroke Ward,HCL NURSING,MAN28559,834.67
Department of Health,Leicestershire Partnership NHS Trust,04/10/18,NURSE - BAND 5 - AGENCY,St Lukes Stroke Ward,HCL NURSING,MAN28559,502.36
Department of Health,Leicestershire Partnership NHS Trust,04/10/18,NURSE - BAND 5 - AGENCY,St Lukes Ward 3,HCL NURSING,MAN28559,3568.15
Department of Health,Leicestershire Partnership NHS Trust,04/10/18,NURSE - BAND 2 - AGENCY,Welford Ward,HCL NURSING,MAN28559,301.21
Department of Health,Leicestershire Partnership NHS Trust,04/10/18,NURSE - BAND 3 - AGENCY,West Planned Care  - Charnwood Hub,HCL NURSING,MAN28559,823.90
Department of Health,Leicestershire Partnership NHS Trust,04/10/18,NURSE - BAND 5 - AGENCY,West Planned Care  - Charnwood Hub,HCL NURSING,MAN28559,1623.21
Department of Health,Leicestershire Partnership NHS Trust,04/10/18,NURSE - BAND 5 - AGENCY,Beechwood Ward,HCL NURSING,MAN28521,1539.48
Department of Health,Leicestershire Partnership NHS Trust,04/10/18,Nurse - Band 6 -Agency,City East CMHT MHSOP,HCL NURSING,MAN28521,836.93
Department of Health,Leicestershire Partnership NHS Trust,04/10/18,NURSE - BAND 5 - AGENCY,City ICS,HCL NURSING,MAN28521,1680.29
Department of Health,Leicestershire Partnership NHS Trust,04/10/18,NURSE - BAND 5 - AGENCY,City Planned Care - East,HCL NURSING,MAN28521,10255.25
Department of Health,Leicestershire Partnership NHS Trust,04/10/18,NURSE - BAND 5 - AGENCY,City Planned Care - West,HCL NURSING,MAN28521,3112.46
Department of Health,Leicestershire Partnership NHS Trust,04/10/18,Nurse - Band 6 -Agency,City West CMHT MHSOP,HCL NURSING,MAN28521,1069.88
Department of Health,Leicestershire Partnership NHS Trust,04/10/18,NURSE - BAND 5 - AGENCY,Clarendon Ward,HCL NURSING,MAN28521,1139.55
Department of Health,Leicestershire Partnership NHS Trust,04/10/18,NURSE - BAND 2 - AGENCY,Coalville Snibston Ward,HCL NURSING,MAN28521,1072.84
Department of Health,Leicestershire Partnership NHS Trust,04/10/18,NURSE - BAND 5 - AGENCY,Coalville Snibston Ward,HCL NURSING,MAN28521,1849.99
Department of Health,Leicestershire Partnership NHS Trust,04/10/18,NURSE - BAND 2 - AGENCY,Coalville Ward 2,HCL NURSING,MAN28521,1571.30
Department of Health,Leicestershire Partnership NHS Trust,04/10/18,NURSE - BAND 5 - AGENCY,Coalville Ward 2,HCL NURSING,MAN28521,491.55
Department of Health,Leicestershire Partnership NHS Trust,04/10/18,NURSE - BAND 5 - AGENCY,Coleman Ward,HCL NURSING,MAN28521,312.72
Department of Health,Leicestershire Partnership NHS Trust,04/10/18,NURSE - BAND 2 - AGENCY,Dalgliesh Ward,HCL NURSING,MAN28521,423.87
Department of Health,Leicestershire Partnership NHS Trust,04/10/18,NURSE - BAND 5 - AGENCY,Dalgliesh Ward,HCL NURSING,MAN28521,2158.25
Department of Health,Leicestershire Partnership NHS Trust,04/10/18,NURSE - BAND 3 - AGENCY,East Planned Care - Blaby/Lutterworth,HCL NURSING,MAN28521,-234.14
Department of Health,Leicestershire Partnership NHS Trust,04/10/18,NURSE - BAND 5 - AGENCY,"East Planned Care - Melton,Syston,Rutland",HCL NURSING,MAN28521,1569.22
Department of Health,Leicestershire Partnership NHS Trust,04/10/18,NURSE - BAND 3 - AGENCY,"East Planned Care - Oadby,Wigston & Harborough",HCL NURSING,MAN28521,240.07
Department of Health,Leicestershire Partnership NHS Trust,04/10/18,NURSE - BAND 5 - AGENCY,Evening Service,HCL NURSING,MAN28521,1852.90
Department of Health,Leicestershire Partnership NHS Trust,04/10/18,NURSE - BAND 2 - AGENCY,Fielding Palmer Nursing,HCL NURSING,MAN28521,225.38
Department of Health,Leicestershire Partnership NHS Trust,04/10/18,NURSE - BAND 5 - AGENCY,Fielding Palmer Nursing,HCL NURSING,MAN28521,2643.93
Department of Health,Leicestershire Partnership NHS Trust,04/10/18,NURSE - BAND 2 - AGENCY,Gwendolen Ward,HCL NURSING,MAN28521,568.85
Department of Health,Leicestershire Partnership NHS Trust,04/10/18,NURSE - BAND 2 - AGENCY,H&B Comm Hosp East Ward,HCL NURSING,MAN28521,325.70
Department of Health,Leicestershire Partnership NHS Trust,04/10/18,NURSE - BAND 5 - AGENCY,H&B Comm Hosp East Ward,HCL NURSING,MAN28521,1103.60
Department of Health,Leicestershire Partnership NHS Trust,04/10/18,NURSE - BAND 2 - AGENCY,H&B Comm Hosp North Ward,HCL NURSING,MAN28521,2745.30
Department of Health,Leicestershire Partnership NHS Trust,04/10/18,NURSE - BAND 5 - AGENCY,H&B Comm Hosp North Ward,HCL NURSING,MAN28521,1591.88
Department of Health,Leicestershire Partnership NHS Trust,04/10/18,NURSE - BAND 2 - AGENCY,Kirby Ward,HCL NURSING,MAN28521,493.33
Department of Health,Leicestershire Partnership NHS Trust,04/10/18,NURSE - BAND 5 - AGENCY,Kirby Ward,HCL NURSING,MAN28521,361.19
Department of Health,Leicestershire Partnership NHS Trust,04/10/18,NURSE - BAND 2 - AGENCY,Lough Swithland Ward,HCL NURSING,MAN28521,417.63
Department of Health,Leicestershire Partnership NHS Trust,04/10/18,NURSE - BAND 5 - AGENCY,North West ICS,HCL NURSING,MAN28521,345.88
Department of Health,Leicestershire Partnership NHS Trust,04/10/18,NURSE - BAND 2 - AGENCY,Rutland Ward Nursing,HCL NURSING,MAN28521,501.20
Department of Health,Leicestershire Partnership NHS Trust,04/10/18,NURSE - BAND 5 - AGENCY,South East ICS,HCL NURSING,MAN28521,2502.23
Department of Health,Leicestershire Partnership NHS Trust,04/10/18,NURSE - BAND 2 - AGENCY,St Lukes Stroke Ward,HCL NURSING,MAN28521,318.70
Department of Health,Leicestershire Partnership NHS Trust,04/10/18,NURSE - BAND 5 - AGENCY,St Lukes Stroke Ward,HCL NURSING,MAN28521,419.12
Department of Health,Leicestershire Partnership NHS Trust,04/10/18,NURSE - BAND 5 - AGENCY,St Lukes Ward 3,HCL NURSING,MAN28521,2539.77
Department of Health,Leicestershire Partnership NHS Trust,04/10/18,NURSE - BAND 2 - AGENCY,Welford Ward,HCL NURSING,MAN28521,739.97
Department of Health,Leicestershire Partnership NHS Trust,04/10/18,NURSE - BAND 5 - AGENCY,Welford Ward,HCL NURSING,MAN28521,302.58
Department of Health,Leicestershire Partnership NHS Trust,04/10/18,NURSE - BAND 5 - AGENCY,West Planned Care  - Charnwood Hub,HCL NURSING,MAN28521,1736.05
Department of Health,Leicestershire Partnership NHS Trust,04/10/18,CHP Estates Management,Belgrave Health Centre (CHP),COMM HLTH PARTNERSHIPS LTD,0060083877,9041.24
Department of Health,Leicestershire Partnership NHS Trust,04/10/18,CHP Estates Management,Merlyn Vaz Centre (CHP),COMM HLTH PARTNERSHIPS LTD,0060083877,60957.31
Department of Health,Leicestershire Partnership NHS Trust,04/10/18,CHP Estates Management,Westcotes Health Centre (CHP),COMM HLTH PARTNERSHIPS LTD,0060083877,11853.09
Department of Health,Leicestershire Partnership NHS Trust,04/10/18,PropCo Estates Management,Melton Mowbray Hospital (previously St. Mary's) (PROPCO),NHS PROPERTY SERVICES LTD,00000001/H112464,61225.46
Department of Health,Leicestershire Partnership NHS Trust,05/10/18,PropCo Estates Management,Melton Mowbray Hospital (previously St. Mary's) (PROPCO),NHS PROPERTY SERVICES LTD,00000001/H112457,32575.11
Department of Health,Leicestershire Partnership NHS Trust,08/10/18,Crs_NHS_LT1y -Resus Inventory Supplied.,Balance Sheet Collection,NHS SUPPLY CHAIN (ST1450),1019132811,41330.50
Department of Health,Leicestershire Partnership NHS Trust,08/10/18,Non NHS ECRs,Out of County Income - Inpateints Project,CYGNET HC LTD,BLA0055821,45354.00
Department of Health,Leicestershire Partnership NHS Trust,08/10/18,Rent,NSPCC Training Cente,NSPCC,117269,28054.56
Department of Health,Leicestershire Partnership NHS Trust,09/10/18,Leased / Hired Vehicles,Adult County- East Leicester CMHT,AUTOMOTIVE LEASING LTD,504428382,15.00
Department of Health,Leicestershire Partnership NHS Trust,09/10/18,Leased / Hired Vehicles,Autism,AUTOMOTIVE LEASING LTD,504428382,638.96
Department of Health,Leicestershire Partnership NHS Trust,09/10/18,Prep_ LT1y -Prepayments Lease Cars,Balance Sheet Collection,AUTOMOTIVE LEASING LTD,504428382,47507.81
Department of Health,Leicestershire Partnership NHS Trust,09/10/18,Trade_Drs_LT1y -Lease Cars Invoicing Contrl Ac.,Balance Sheet Collection,AUTOMOTIVE LEASING LTD,504428382,544.00
Department of Health,Leicestershire Partnership NHS Trust,09/10/18,Leased / Hired Vehicles,CAMHS Inpatient Service,AUTOMOTIVE LEASING LTD,504428382,337.06
Department of Health,Leicestershire Partnership NHS Trust,09/10/18,Leased / Hired Vehicles,East Planned Care - Blaby/Lutterworth,AUTOMOTIVE LEASING LTD,504428382,68.64
Department of Health,Leicestershire Partnership NHS Trust,09/10/18,Leased / Hired Vehicles,HIS,AUTOMOTIVE LEASING LTD,504428382,10.00
Department of Health,Leicestershire Partnership NHS Trust,09/10/18,Leased / Hired Vehicles,Information Services,AUTOMOTIVE LEASING LTD,504428382,45.76
Department of Health,Leicestershire Partnership NHS Trust,09/10/18,Leased / Hired Vehicles,Mental Health Triage Team,AUTOMOTIVE LEASING LTD,504428382,571.16
Department of Health,Leicestershire Partnership NHS Trust,09/10/18,Leased / Hired Vehicles,Mill Lodge,AUTOMOTIVE LEASING LTD,504428382,135.18
Department of Health,Leicestershire Partnership NHS Trust,09/10/18,Leased / Hired Vehicles,Respiratory Service,AUTOMOTIVE LEASING LTD,504428382,10.00
Department of Health,Leicestershire Partnership NHS Trust,09/10/18,Leased / Hired Vehicles,School Age Immunisation and Vaccinations,AUTOMOTIVE LEASING LTD,504428382,10.00
Department of Health,Leicestershire Partnership NHS Trust,09/10/18,Leased / Hired Vehicles,Speech & Language Therapy,AUTOMOTIVE LEASING LTD,504428382,557.00
Department of Health,Leicestershire Partnership NHS Trust,09/10/18,Leased / Hired Vehicles,West Leicestershire CMHT MHSOP,AUTOMOTIVE LEASING LTD,504428382,32.25
Department of Health,Leicestershire Partnership NHS Trust,10/10/18,Network Costs - WAN Maint,HIS Infrastructure,VIRGIN MEDIA BUSINESS,262421-148,46565.94
Department of Health,Leicestershire Partnership NHS Trust,10/10/18,GP IT Expenditure,Area Team,DELL COMPUTERS,7402471591,26400.00
Department of Health,Leicestershire Partnership NHS Trust,11/10/18,Payroll Deductions - Kiddi Vouchers,Balance Sheet Collection,WIDER PLAN LTD,4377968,44694.08
Department of Health,Leicestershire Partnership NHS Trust,11/10/18,Rent,"St Peters Health Center (Part 1st and 2nd floors) (P66, LPT)",LEICESTER LIFT CO,LEP1/S0I67,26127.54
Department of Health,Leicestershire Partnership NHS Trust,11/10/18,Rent,"St Peters Health Center (Part 1st and 2nd floors) (P66, LPT)",LEICESTER LIFT CO,LEP1/S0I92,26127.54
Department of Health,Leicestershire Partnership NHS Trust,11/10/18,WIP Project Not in BS - Buildings excl Dwellings,Work in Progress,INTERSERVE CONSTRUCTION LTD,VEM54853,233122.86
Department of Health,Leicestershire Partnership NHS Trust,11/10/18,PropCo Estates Management,St. Luke's Hospital (PROPCO),NHS PROPERTY SERVICES LTD,00000001/H112463,28166.65
Department of Health,Leicestershire Partnership NHS Trust,11/10/18,PropCo Estates Management,St. Luke's Hospital (PROPCO),NHS PROPERTY SERVICES LTD,00000001/H106736,47500.00
Department of Health,Leicestershire Partnership NHS Trust,11/10/18,PropCo Estates Management,Charnwood Mill (PROPCO),NHS PROPERTY SERVICES LTD,00000001/H106741,35444.67
Department of Health,Leicestershire Partnership NHS Trust,12/10/18,NURSE - BAND 2 - AGENCY,Beechwood Ward,HCL NURSING,MAN28591,380.35
Department of Health,Leicestershire Partnership NHS Trust,12/10/18,NURSE - BAND 5 - AGENCY,Beechwood Ward,HCL NURSING,MAN28591,386.06
Department of Health,Leicestershire Partnership NHS Trust,12/10/18,Nurse - Band 6 -Agency,City East CMHT MHSOP,HCL NURSING,MAN28591,1046.16
Department of Health,Leicestershire Partnership NHS Trust,12/10/18,NURSE - BAND 5 - AGENCY,City ICS,HCL NURSING,MAN28591,3471.46
Department of Health,Leicestershire Partnership NHS Trust,12/10/18,NURSE - BAND 5 - AGENCY,City Planned Care - East,HCL NURSING,MAN28591,7438.06
Department of Health,Leicestershire Partnership NHS Trust,12/10/18,NURSE - BAND 5 - AGENCY,City Planned Care - West,HCL NURSING,MAN28591,2712.61
Department of Health,Leicestershire Partnership NHS Trust,12/10/18,Nurse - Band 6 -Agency,City West CMHT MHSOP,HCL NURSING,MAN28591,1069.88
Department of Health,Leicestershire Partnership NHS Trust,12/10/18,NURSE - BAND 2 - AGENCY,Coalville Snibston Ward,HCL NURSING,MAN28591,2321.38
Department of Health,Leicestershire Partnership NHS Trust,12/10/18,NURSE - BAND 5 - AGENCY,Coalville Snibston Ward,HCL NURSING,MAN28591,500.05
Department of Health,Leicestershire Partnership NHS Trust,12/10/18,NURSE - BAND 2 - AGENCY,Coalville Ward 2,HCL NURSING,MAN28591,1104.54
Department of Health,Leicestershire Partnership NHS Trust,12/10/18,NURSE - BAND 5 - AGENCY,Coalville Ward 2,HCL NURSING,MAN28591,514.90
Department of Health,Leicestershire Partnership NHS Trust,12/10/18,NURSE - BAND 2 - AGENCY,Dalgliesh Ward,HCL NURSING,MAN28591,706.48
Department of Health,Leicestershire Partnership NHS Trust,12/10/18,NURSE - BAND 5 - AGENCY,Dalgliesh Ward,HCL NURSING,MAN28591,1957.78
Department of Health,Leicestershire Partnership NHS Trust,12/10/18,NURSE - BAND 3 - AGENCY,East Planned Care - Blaby/Lutterworth,HCL NURSING,MAN28591,1098.50
Department of Health,Leicestershire Partnership NHS Trust,12/10/18,NURSE - BAND 5 - AGENCY,"East Planned Care - Melton,Syston,Rutland",HCL NURSING,MAN28591,276.65
Department of Health,Leicestershire Partnership NHS Trust,12/10/18,NURSE - BAND 5 - AGENCY,"East Planned Care - Oadby,Wigston & Harborough",HCL NURSING,MAN28591,343.84
Department of Health,Leicestershire Partnership NHS Trust,12/10/18,NURSE - BAND 5 - AGENCY,Evening Service,HCL NURSING,MAN28591,2047.40
Department of Health,Leicestershire Partnership NHS Trust,12/10/18,NURSE - BAND 2 - AGENCY,Fielding Palmer Nursing,HCL NURSING,MAN28591,552.68
Department of Health,Leicestershire Partnership NHS Trust,12/10/18,NURSE - BAND 5 - AGENCY,Fielding Palmer Nursing,HCL NURSING,MAN28591,1151.08
Department of Health,Leicestershire Partnership NHS Trust,12/10/18,NURSE - BAND 2 - AGENCY,Gwendolen Ward,HCL NURSING,MAN28591,891.82
Department of Health,Leicestershire Partnership NHS Trust,12/10/18,NURSE - BAND 2 - AGENCY,H&B Comm Hosp East Ward,HCL NURSING,MAN28591,1215.01
Department of Health,Leicestershire Partnership NHS Trust,12/10/18,NURSE - BAND 5 - AGENCY,H&B Comm Hosp East Ward,HCL NURSING,MAN28591,1711.10
Department of Health,Leicestershire Partnership NHS Trust,12/10/18,NURSE - BAND 2 - AGENCY,H&B Comm Hosp North Ward,HCL NURSING,MAN28591,2196.06
Department of Health,Leicestershire Partnership NHS Trust,12/10/18,NURSE - BAND 5 - AGENCY,H&B Comm Hosp North Ward,HCL NURSING,MAN28591,996.92
Department of Health,Leicestershire Partnership NHS Trust,12/10/18,NURSE - BAND 5 - AGENCY,Lough Swithland Ward,HCL NURSING,MAN28591,1173.28
Department of Health,Leicestershire Partnership NHS Trust,12/10/18,Nurse - Band 6 -Agency,MHSOP Integrated Care Team,HCL NURSING,MAN28591,1046.16
Department of Health,Leicestershire Partnership NHS Trust,12/10/18,NURSE - BAND 5 - AGENCY,North West ICS,HCL NURSING,MAN28591,1686.10
Department of Health,Leicestershire Partnership NHS Trust,12/10/18,NURSE - BAND 2 - AGENCY,Rutland Ward Nursing,HCL NURSING,MAN28591,254.97
Department of Health,Leicestershire Partnership NHS Trust,12/10/18,NURSE - BAND 5 - AGENCY,Rutland Ward Nursing,HCL NURSING,MAN28591,829.87
Department of Health,Leicestershire Partnership NHS Trust,12/10/18,NURSE - BAND 5 - AGENCY,South East ICS,HCL NURSING,MAN28591,4100.20
Department of Health,Leicestershire Partnership NHS Trust,12/10/18,NURSE - BAND 5 - AGENCY,St Lukes Stroke Ward,HCL NURSING,MAN28591,815.78
Department of Health,Leicestershire Partnership NHS Trust,12/10/18,NURSE - BAND 2 - AGENCY,St Lukes Ward 3,HCL NURSING,MAN28591,144.97
Department of Health,Leicestershire Partnership NHS Trust,12/10/18,NURSE - BAND 5 - AGENCY,St Lukes Ward 3,HCL NURSING,MAN28591,2750.08
Department of Health,Leicestershire Partnership NHS Trust,12/10/18,NURSE - BAND 3 - AGENCY,West Planned Care  - Charnwood Hub,HCL NURSING,MAN28591,68.27
Department of Health,Leicestershire Partnership NHS Trust,12/10/18,NURSE - BAND 5 - AGENCY,West Planned Care  - Charnwood Hub,HCL NURSING,MAN28591,720.14
Department of Health,Leicestershire Partnership NHS Trust,12/10/18,NURSE - BAND 2 - AGENCY,Beechwood Ward,HCL NURSING,MAN28621,168.41
Department of Health,Leicestershire Partnership NHS Trust,12/10/18,NURSE - BAND 5 - AGENCY,City ICS,HCL NURSING,MAN28621,1250.25
Department of Health,Leicestershire Partnership NHS Trust,12/10/18,NURSE - BAND 5 - AGENCY,City Planned Care - East,HCL NURSING,MAN28621,6644.43
Department of Health,Leicestershire Partnership NHS Trust,12/10/18,NURSE - BAND 5 - AGENCY,City Planned Care - West,HCL NURSING,MAN28621,2009.74
Department of Health,Leicestershire Partnership NHS Trust,12/10/18,Nurse - Band 6 -Agency,City West CMHT MHSOP,HCL NURSING,MAN28621,1957.90
Department of Health,Leicestershire Partnership NHS Trust,12/10/18,NURSE - BAND 2 - AGENCY,Clarendon Ward,HCL NURSING,MAN28621,574.26
Department of Health,Leicestershire Partnership NHS Trust,12/10/18,NURSE - BAND 2 - AGENCY,Coalville Snibston Ward,HCL NURSING,MAN28621,1243.60
Department of Health,Leicestershire Partnership NHS Trust,12/10/18,NURSE - BAND 5 - AGENCY,Coalville Snibston Ward,HCL NURSING,MAN28621,1649.46
Department of Health,Leicestershire Partnership NHS Trust,12/10/18,NURSE - BAND 2 - AGENCY,Coalville Ward 2,HCL NURSING,MAN28621,783.18
Department of Health,Leicestershire Partnership NHS Trust,12/10/18,NURSE - BAND 2 - AGENCY,Coleman Ward,HCL NURSING,MAN28621,374.19
Department of Health,Leicestershire Partnership NHS Trust,12/10/18,NURSE - BAND 5 - AGENCY,Dalgliesh Ward,HCL NURSING,MAN28621,448.16
Department of Health,Leicestershire Partnership NHS Trust,12/10/18,NURSE - BAND 3 - AGENCY,East Planned Care - Blaby/Lutterworth,HCL NURSING,MAN28621,977.20
Department of Health,Leicestershire Partnership NHS Trust,12/10/18,NURSE - BAND 5 - AGENCY,"East Planned Care - Melton,Syston,Rutland",HCL NURSING,MAN28621,337.69
Department of Health,Leicestershire Partnership NHS Trust,12/10/18,NURSE - BAND 3 - AGENCY,"East Planned Care - Oadby,Wigston & Harborough",HCL NURSING,MAN28621,498.82
Department of Health,Leicestershire Partnership NHS Trust,12/10/18,NURSE - BAND 5 - AGENCY,"East Planned Care - Oadby,Wigston & Harborough",HCL NURSING,MAN28621,2533.45
Department of Health,Leicestershire Partnership NHS Trust,12/10/18,NURSE - BAND 5 - AGENCY,Evening Service,HCL NURSING,MAN28621,1067.12
Department of Health,Leicestershire Partnership NHS Trust,12/10/18,NURSE - BAND 2 - AGENCY,Fielding Palmer Nursing,HCL NURSING,MAN28621,109.19
Department of Health,Leicestershire Partnership NHS Trust,12/10/18,NURSE - BAND 5 - AGENCY,Fielding Palmer Nursing,HCL NURSING,MAN28621,3327.82
Department of Health,Leicestershire Partnership NHS Trust,12/10/18,NURSE - BAND 2 - AGENCY,Gwendolen Ward,HCL NURSING,MAN28621,194.69
Department of Health,Leicestershire Partnership NHS Trust,12/10/18,NURSE - BAND 2 - AGENCY,H&B Comm Hosp East Ward,HCL NURSING,MAN28621,430.86
Department of Health,Leicestershire Partnership NHS Trust,12/10/18,NURSE - BAND 5 - AGENCY,H&B Comm Hosp East Ward,HCL NURSING,MAN28621,1625.40
Department of Health,Leicestershire Partnership NHS Trust,12/10/18,NURSE - BAND 2 - AGENCY,H&B Comm Hosp North Ward,HCL NURSING,MAN28621,2069.19
Department of Health,Leicestershire Partnership NHS Trust,12/10/18,NURSE - BAND 5 - AGENCY,H&B Comm Hosp North Ward,HCL NURSING,MAN28621,1797.97
Department of Health,Leicestershire Partnership NHS Trust,12/10/18,NURSE - BAND 2 - AGENCY,Kirby Ward,HCL NURSING,MAN28621,113.85
Department of Health,Leicestershire Partnership NHS Trust,12/10/18,NURSE - BAND 5 - AGENCY,Kirby Ward,HCL NURSING,MAN28621,297.60
Department of Health,Leicestershire Partnership NHS Trust,12/10/18,NURSE - BAND 2 - AGENCY,Lough Swithland Ward,HCL NURSING,MAN28621,555.75
Department of Health,Leicestershire Partnership NHS Trust,12/10/18,NURSE - BAND 5 - AGENCY,Lough Swithland Ward,HCL NURSING,MAN28621,1525.61
Department of Health,Leicestershire Partnership NHS Trust,12/10/18,Nurse - Band 6 -Agency,MHSOP Integrated Care Team,HCL NURSING,MAN28621,1046.16
Department of Health,Leicestershire Partnership NHS Trust,12/10/18,NURSE - BAND 5 - AGENCY,North West ICS,HCL NURSING,MAN28621,76.73
Department of Health,Leicestershire Partnership NHS Trust,12/10/18,NURSE - BAND 2 - AGENCY,Rutland Ward Nursing,HCL NURSING,MAN28621,1026.64
Department of Health,Leicestershire Partnership NHS Trust,12/10/18,NURSE - BAND 5 - AGENCY,Rutland Ward Nursing,HCL NURSING,MAN28621,442.31
Department of Health,Leicestershire Partnership NHS Trust,12/10/18,NURSE - BAND 5 - AGENCY,South East ICS,HCL NURSING,MAN28621,5056.62
Department of Health,Leicestershire Partnership NHS Trust,12/10/18,NURSE - BAND 2 - AGENCY,St Lukes Stroke Ward,HCL NURSING,MAN28621,254.97
Department of Health,Leicestershire Partnership NHS Trust,12/10/18,NURSE - BAND 5 - AGENCY,St Lukes Stroke Ward,HCL NURSING,MAN28621,419.12
Department of Health,Leicestershire Partnership NHS Trust,12/10/18,NURSE - BAND 5 - AGENCY,St Lukes Ward 3,HCL NURSING,MAN28621,1584.60
Department of Health,Leicestershire Partnership NHS Trust,12/10/18,NURSE - BAND 2 - AGENCY,Welford Ward,HCL NURSING,MAN28621,503.20
Department of Health,Leicestershire Partnership NHS Trust,12/10/18,NURSE - BAND 3 - AGENCY,West Planned Care  - Charnwood Hub,HCL NURSING,MAN28621,596.26
Department of Health,Leicestershire Partnership NHS Trust,12/10/18,NURSE - BAND 5 - AGENCY,West Planned Care  - Charnwood Hub,HCL NURSING,MAN28621,3208.22
Department of Health,Leicestershire Partnership NHS Trust,16/10/18,Insurance Costs,Chief Executives Office,NHS LITIGATION AUTHORITY,SICX/00135139,85763.50
Department of Health,Leicestershire Partnership NHS Trust,16/10/18,Crs_NHS_LT1y -Resus Inventory Supplied.,Balance Sheet Collection,NHS SUPPLY CHAIN (ST1450),1019135065,50359.99
Department of Health,Leicestershire Partnership NHS Trust,17/10/18,Occupational Health,HR Operations,UHL NHS TRUST (RWE),L0216680,26622.00
Department of Health,Leicestershire Partnership NHS Trust,17/10/18,Services / Recharges from NHS Trusts,Inter Unit I & E Distribution,UHL NHS TRUST (RWE),L0216686,179992.55
Department of Health,Leicestershire Partnership NHS Trust,18/10/18,UHL Facilities Management SLA,Estates Central Invoices To Recharge,UHL NHS TRUST (RWE),L0216744,827106.58
Department of Health,Leicestershire Partnership NHS Trust,18/10/18,UHL Facilities Management SLA,Estates Central Invoices To Recharge,UHL NHS TRUST (RWE),L0216745,827106.58
Department of Health,Leicestershire Partnership NHS Trust,22/10/18,NURSE - BAND 2 - AGENCY,Beechwood Ward,HCL NURSING,MAN28665,489.88
Department of Health,Leicestershire Partnership NHS Trust,22/10/18,NURSE - BAND 5 - AGENCY,Beechwood Ward,HCL NURSING,MAN28665,386.06
Department of Health,Leicestershire Partnership NHS Trust,22/10/18,Nurse - Band 6 -Agency,City East CMHT MHSOP,HCL NURSING,MAN28665,836.93
Department of Health,Leicestershire Partnership NHS Trust,22/10/18,NURSE - BAND 5 - AGENCY,City ICS,HCL NURSING,MAN28665,2976.87
Department of Health,Leicestershire Partnership NHS Trust,22/10/18,NURSE - BAND 5 - AGENCY,City Planned Care - East,HCL NURSING,MAN28665,6955.88
Department of Health,Leicestershire Partnership NHS Trust,22/10/18,NURSE - BAND 5 - AGENCY,City Planned Care - West,HCL NURSING,MAN28665,2001.51
Department of Health,Leicestershire Partnership NHS Trust,22/10/18,Nurse - Band 6 -Agency,City West CMHT MHSOP,HCL NURSING,MAN28665,2173.02
Department of Health,Leicestershire Partnership NHS Trust,22/10/18,NURSE - BAND 2 - AGENCY,Coalville Snibston Ward,HCL NURSING,MAN28665,1053.81
Department of Health,Leicestershire Partnership NHS Trust,22/10/18,NURSE - BAND 2 - AGENCY,Coalville Ward 2,HCL NURSING,MAN28665,501.54
Department of Health,Leicestershire Partnership NHS Trust,22/10/18,NURSE - BAND 2 - AGENCY,Coleman Ward,HCL NURSING,MAN28665,294.06
Department of Health,Leicestershire Partnership NHS Trust,22/10/18,NURSE - BAND 5 - AGENCY,Dalgliesh Ward,HCL NURSING,MAN28665,1158.19
Department of Health,Leicestershire Partnership NHS Trust,22/10/18,NURSE - BAND 3 - AGENCY,East Planned Care - Blaby/Lutterworth,HCL NURSING,MAN28665,970.50
Department of Health,Leicestershire Partnership NHS Trust,22/10/18,NURSE - BAND 5 - AGENCY,"East Planned Care - Melton,Syston,Rutland",HCL NURSING,MAN28665,457.76
Department of Health,Leicestershire Partnership NHS Trust,22/10/18,NURSE - BAND 3 - AGENCY,"East Planned Care - Oadby,Wigston & Harborough",HCL NURSING,MAN28665,750.46
Department of Health,Leicestershire Partnership NHS Trust,22/10/18,NURSE - BAND 5 - AGENCY,"East Planned Care - Oadby,Wigston & Harborough",HCL NURSING,MAN28665,764.62
Department of Health,Leicestershire Partnership NHS Trust,22/10/18,NURSE - BAND 5 - AGENCY,Evening Service,HCL NURSING,MAN28665,909.18
Department of Health,Leicestershire Partnership NHS Trust,22/10/18,NURSE - BAND 2 - AGENCY,Fielding Palmer Nursing,HCL NURSING,MAN28665,144.97
Department of Health,Leicestershire Partnership NHS Trust,22/10/18,NURSE - BAND 5 - AGENCY,Fielding Palmer Nursing,HCL NURSING,MAN28665,1254.45
Department of Health,Leicestershire Partnership NHS Trust,22/10/18,NURSE - BAND 2 - AGENCY,Gwendolen Ward,HCL NURSING,MAN28665,970.32
Department of Health,Leicestershire Partnership NHS Trust,22/10/18,NURSE - BAND 2 - AGENCY,H&B Comm Hosp East Ward,HCL NURSING,MAN28665,254.16
Department of Health,Leicestershire Partnership NHS Trust,22/10/18,NURSE - BAND 5 - AGENCY,H&B Comm Hosp East Ward,HCL NURSING,MAN28665,2009.46
Department of Health,Leicestershire Partnership NHS Trust,22/10/18,NURSE - BAND 2 - AGENCY,H&B Comm Hosp North Ward,HCL NURSING,MAN28665,1385.80
Department of Health,Leicestershire Partnership NHS Trust,22/10/18,NURSE - BAND 5 - AGENCY,H&B Comm Hosp North Ward,HCL NURSING,MAN28665,768.33
Department of Health,Leicestershire Partnership NHS Trust,22/10/18,NURSE - BAND 2 - AGENCY,Kirby Ward,HCL NURSING,MAN28665,295.86
Department of Health,Leicestershire Partnership NHS Trust,22/10/18,NURSE - BAND 2 - AGENCY,Lough Swithland Ward,HCL NURSING,MAN28665,254.15
Department of Health,Leicestershire Partnership NHS Trust,22/10/18,NURSE - BAND 5 - AGENCY,North East ICS,HCL NURSING,MAN28665,874.61
Department of Health,Leicestershire Partnership NHS Trust,22/10/18,NURSE - BAND 5 - AGENCY,North West ICS,HCL NURSING,MAN28665,2196.93
Department of Health,Leicestershire Partnership NHS Trust,22/10/18,NURSE - BAND 2 - AGENCY,Rutland Ward Nursing,HCL NURSING,MAN28665,191.95
Department of Health,Leicestershire Partnership NHS Trust,22/10/18,NURSE - BAND 5 - AGENCY,Rutland Ward Nursing,HCL NURSING,MAN28665,805.19
Department of Health,Leicestershire Partnership NHS Trust,22/10/18,NURSE - BAND 5 - AGENCY,South East ICS,HCL NURSING,MAN28665,4449.07
Department of Health,Leicestershire Partnership NHS Trust,22/10/18,NURSE - BAND 2 - AGENCY,St Lukes Stroke Ward,HCL NURSING,MAN28665,293.13
Department of Health,Leicestershire Partnership NHS Trust,22/10/18,NURSE - BAND 5 - AGENCY,St Lukes Ward 3,HCL NURSING,MAN28665,2941.21
Department of Health,Leicestershire Partnership NHS Trust,22/10/18,NURSE - BAND 2 - AGENCY,Welford Ward,HCL NURSING,MAN28665,254.16
Department of Health,Leicestershire Partnership NHS Trust,22/10/18,NURSE - BAND 3 - AGENCY,West Planned Care  - Charnwood Hub,HCL NURSING,MAN28665,278.60
Department of Health,Leicestershire Partnership NHS Trust,22/10/18,NURSE - BAND 5 - AGENCY,West Planned Care  - Charnwood Hub,HCL NURSING,MAN28665,1297.07
Department of Health,Leicestershire Partnership NHS Trust,22/10/18,NURSE - BAND 5 - AGENCY,Beechwood Ward,HCL NURSING,MAN28715,792.30
Department of Health,Leicestershire Partnership NHS Trust,22/10/18,Nurse - Band 6 -Agency,City East CMHT MHSOP,HCL NURSING,MAN28715,855.90
Department of Health,Leicestershire Partnership NHS Trust,22/10/18,NURSE - BAND 5 - AGENCY,City ICS,HCL NURSING,MAN28715,3037.00
Department of Health,Leicestershire Partnership NHS Trust,22/10/18,NURSE - BAND 5 - AGENCY,City Planned Care - East,HCL NURSING,MAN28715,9034.43
Department of Health,Leicestershire Partnership NHS Trust,22/10/18,NURSE - BAND 5 - AGENCY,City Planned Care - West,HCL NURSING,MAN28715,3846.31
Department of Health,Leicestershire Partnership NHS Trust,22/10/18,Nurse - Band 6 -Agency,City West CMHT MHSOP,HCL NURSING,MAN28715,1069.88
Department of Health,Leicestershire Partnership NHS Trust,22/10/18,NURSE - BAND 2 - AGENCY,Clarendon Ward,HCL NURSING,MAN28715,831.85
Department of Health,Leicestershire Partnership NHS Trust,22/10/18,NURSE - BAND 5 - AGENCY,Clarendon Ward,HCL NURSING,MAN28715,1806.45
Department of Health,Leicestershire Partnership NHS Trust,22/10/18,NURSE - BAND 2 - AGENCY,Coalville Snibston Ward,HCL NURSING,MAN28715,565.81
Department of Health,Leicestershire Partnership NHS Trust,22/10/18,NURSE - BAND 5 - AGENCY,Coalville Snibston Ward,HCL NURSING,MAN28715,1361.13
Department of Health,Leicestershire Partnership NHS Trust,22/10/18,NURSE - BAND 2 - AGENCY,Coalville Ward 2,HCL NURSING,MAN28715,1314.82
Department of Health,Leicestershire Partnership NHS Trust,22/10/18,NURSE - BAND 2 - AGENCY,Coleman Ward,HCL NURSING,MAN28715,588.13
Department of Health,Leicestershire Partnership NHS Trust,22/10/18,NURSE - BAND 5 - AGENCY,Dalgliesh Ward,HCL NURSING,MAN28715,2615.38
Department of Health,Leicestershire Partnership NHS Trust,22/10/18,NURSE - BAND 3 - AGENCY,East Planned Care - Blaby/Lutterworth,HCL NURSING,MAN28715,1237.93
Department of Health,Leicestershire Partnership NHS Trust,22/10/18,NURSE - BAND 5 - AGENCY,"East Planned Care - Melton,Syston,Rutland",HCL NURSING,MAN28715,674.38
Department of Health,Leicestershire Partnership NHS Trust,22/10/18,NURSE - BAND 3 - AGENCY,"East Planned Care - Oadby,Wigston & Harborough",HCL NURSING,MAN28715,1031.48
Department of Health,Leicestershire Partnership NHS Trust,22/10/18,NURSE - BAND 5 - AGENCY,"East Planned Care - Oadby,Wigston & Harborough",HCL NURSING,MAN28715,1079.15
Department of Health,Leicestershire Partnership NHS Trust,22/10/18,NURSE - BAND 5 - AGENCY,Evening Service,HCL NURSING,MAN28715,1037.36
Department of Health,Leicestershire Partnership NHS Trust,22/10/18,NURSE - BAND 2 - AGENCY,Fielding Palmer Nursing,HCL NURSING,MAN28715,87.84
Department of Health,Leicestershire Partnership NHS Trust,22/10/18,NURSE - BAND 5 - AGENCY,Fielding Palmer Nursing,HCL NURSING,MAN28715,2873.54
Department of Health,Leicestershire Partnership NHS Trust,22/10/18,NURSE - BAND 2 - AGENCY,Gwendolen Ward,HCL NURSING,MAN28715,571.95
Department of Health,Leicestershire Partnership NHS Trust,22/10/18,NURSE - BAND 2 - AGENCY,H&B Comm Hosp East Ward,HCL NURSING,MAN28715,254.97
Department of Health,Leicestershire Partnership NHS Trust,22/10/18,NURSE - BAND 5 - AGENCY,H&B Comm Hosp East Ward,HCL NURSING,MAN28715,1329.16
Department of Health,Leicestershire Partnership NHS Trust,22/10/18,NURSE - BAND 2 - AGENCY,H&B Comm Hosp North Ward,HCL NURSING,MAN28715,1152.02
Department of Health,Leicestershire Partnership NHS Trust,22/10/18,NURSE - BAND 5 - AGENCY,H&B Comm Hosp North Ward,HCL NURSING,MAN28715,975.87
Department of Health,Leicestershire Partnership NHS Trust,22/10/18,NURSE - BAND 2 - AGENCY,Kirby Ward,HCL NURSING,MAN28715,201.67
Department of Health,Leicestershire Partnership NHS Trust,22/10/18,Nurse - Band 6 -Agency,MHSOP Integrated Care Team,HCL NURSING,MAN28715,1046.16
Department of Health,Leicestershire Partnership NHS Trust,22/10/18,NURSE - BAND 5 - AGENCY,North East ICS,HCL NURSING,MAN28715,874.61
Department of Health,Leicestershire Partnership NHS Trust,22/10/18,NURSE - BAND 5 - AGENCY,North West ICS,HCL NURSING,MAN28715,633.19
Department of Health,Leicestershire Partnership NHS Trust,22/10/18,NURSE - BAND 2 - AGENCY,Rutland Ward Nursing,HCL NURSING,MAN28715,109.19
Department of Health,Leicestershire Partnership NHS Trust,22/10/18,NURSE - BAND 5 - AGENCY,South East ICS,HCL NURSING,MAN28715,4564.37
Department of Health,Leicestershire Partnership NHS Trust,22/10/18,NURSE - BAND 5 - AGENCY,St Lukes Stroke Ward,HCL NURSING,MAN28715,1071.93
Department of Health,Leicestershire Partnership NHS Trust,22/10/18,NURSE - BAND 5 - AGENCY,St Lukes Ward 3,HCL NURSING,MAN28715,2376.99
Department of Health,Leicestershire Partnership NHS Trust,22/10/18,NURSE - BAND 2 - AGENCY,Welford Ward,HCL NURSING,MAN28715,425.80
Department of Health,Leicestershire Partnership NHS Trust,22/10/18,NURSE - BAND 3 - AGENCY,West Planned Care  - Charnwood Hub,HCL NURSING,MAN28715,302.33
Department of Health,Leicestershire Partnership NHS Trust,22/10/18,NURSE - BAND 5 - AGENCY,West Planned Care  - Charnwood Hub,HCL NURSING,MAN28715,1906.12
Department of Health,Leicestershire Partnership NHS Trust,22/10/18,Crs_NHS_LT1y -Resus Inventory Supplied.,Balance Sheet Collection,NHS SUPPLY CHAIN (ST1450),1019143213,43860.84
Department of Health,Leicestershire Partnership NHS Trust,22/10/18,Nurse - Band 6 -Agency,Adult City East CMHT - Merlyn Vaz,HCL NURSING,MAN28620,870.86
Department of Health,Leicestershire Partnership NHS Trust,22/10/18,Nurse - Band 6 -Agency,Adult County Charnwood CMHT - Loughborough Base,HCL NURSING,MAN28620,3209.63
Department of Health,Leicestershire Partnership NHS Trust,22/10/18,Nurse - Band 6 -Agency,Adult County North West Leicestershire CMHT,HCL NURSING,MAN28620,1283.85
Department of Health,Leicestershire Partnership NHS Trust,22/10/18,NURSE - BAND 5 - AGENCY,Agnes Unit Management,HCL NURSING,MAN28620,575.85
Department of Health,Leicestershire Partnership NHS Trust,22/10/18,NURSE - BAND 5 - AGENCY,Aston Ward (Bradgate Unit),HCL NURSING,MAN28620,2399.97
Department of Health,Leicestershire Partnership NHS Trust,22/10/18,NURSE - BAND 2 - AGENCY,Belvoir Psychiatric Intensive Care Unit,HCL NURSING,MAN28620,2102.34
Department of Health,Leicestershire Partnership NHS Trust,22/10/18,NURSE - BAND 5 - AGENCY,Belvoir Psychiatric Intensive Care Unit,HCL NURSING,MAN28620,2058.86
Department of Health,Leicestershire Partnership NHS Trust,22/10/18,NURSE - BAND 2 - AGENCY,Bosworth Ward - Bradgate Unit,HCL NURSING,MAN28620,336.82
Department of Health,Leicestershire Partnership NHS Trust,22/10/18,NURSE - BAND 5 - AGENCY,Bosworth Ward - Bradgate Unit,HCL NURSING,MAN28620,756.51
Department of Health,Leicestershire Partnership NHS Trust,22/10/18,Nurse - Band 6 -Agency,Crisis Resolution,HCL NURSING,MAN28620,2319.76
Department of Health,Leicestershire Partnership NHS Trust,22/10/18,NURSE - BAND 2 - AGENCY,Griffin Ward (HPC),HCL NURSING,MAN28620,201.32
Department of Health,Leicestershire Partnership NHS Trust,22/10/18,NURSE - BAND 5 - AGENCY,Griffin Ward (HPC),HCL NURSING,MAN28620,3023.50
Department of Health,Leicestershire Partnership NHS Trust,22/10/18,NURSE - BAND 2 - AGENCY,Heather Ward,HCL NURSING,MAN28620,336.82
Department of Health,Leicestershire Partnership NHS Trust,22/10/18,NURSE - BAND 5 - AGENCY,Heather Ward,HCL NURSING,MAN28620,1891.00
Department of Health,Leicestershire Partnership NHS Trust,22/10/18,Nurse - Band 6 -Agency,Mental Health Triage Team,HCL NURSING,MAN28620,3369.30
Department of Health,Leicestershire Partnership NHS Trust,22/10/18,NURSE - BAND 2 - AGENCY,Mill Lodge,HCL NURSING,MAN28620,176.94
Department of Health,Leicestershire Partnership NHS Trust,22/10/18,NURSE - BAND 5 - AGENCY,Mill Lodge,HCL NURSING,MAN28620,1548.11
Department of Health,Leicestershire Partnership NHS Trust,22/10/18,NURSE - BAND 2 - AGENCY,Phoenix Ward (HPC),HCL NURSING,MAN28620,168.41
Department of Health,Leicestershire Partnership NHS Trust,22/10/18,NURSE - BAND 2 - AGENCY,Watermead Ward (Bradgate Unit),HCL NURSING,MAN28620,238.94
Department of Health,Leicestershire Partnership NHS Trust,22/10/18,NURSE - BAND 5 - AGENCY,Watermead Ward (Bradgate Unit),HCL NURSING,MAN28620,1634.36
Department of Health,Leicestershire Partnership NHS Trust,22/10/18,NURSE - BAND 2 - AGENCY,Acacia (Willows),HCL NURSING,MAN28664,109.19
Department of Health,Leicestershire Partnership NHS Trust,22/10/18,Nurse - Band 6 -Agency,Adult City East CMHT - Merlyn Vaz,HCL NURSING,MAN28664,1756.80
Department of Health,Leicestershire Partnership NHS Trust,22/10/18,Nurse - Band 6 -Agency,Adult County Charnwood CMHT - Loughborough Base,HCL NURSING,MAN28664,1711.80
Department of Health,Leicestershire Partnership NHS Trust,22/10/18,NURSE - BAND 2 - AGENCY,Agnes Unit Management,HCL NURSING,MAN28664,261.16
Department of Health,Leicestershire Partnership NHS Trust,22/10/18,NURSE - BAND 5 - AGENCY,Ashby Ward (Bradgate Unit),HCL NURSING,MAN28664,596.56
Department of Health,Leicestershire Partnership NHS Trust,22/10/18,NURSE - BAND 2 - AGENCY,Aston Ward (Bradgate Unit),HCL NURSING,MAN28664,220.57
Department of Health,Leicestershire Partnership NHS Trust,22/10/18,NURSE - BAND 2 - AGENCY,Beaumont Ward - Bradgate Unit,HCL NURSING,MAN28664,113.85
Department of Health,Leicestershire Partnership NHS Trust,22/10/18,NURSE - BAND 5 - AGENCY,Beaumont Ward - Bradgate Unit,HCL NURSING,MAN28664,924.07
Department of Health,Leicestershire Partnership NHS Trust,22/10/18,NURSE - BAND 2 - AGENCY,Belvoir Psychiatric Intensive Care Unit,HCL NURSING,MAN28664,1928.18
Department of Health,Leicestershire Partnership NHS Trust,22/10/18,NURSE - BAND 5 - AGENCY,Belvoir Psychiatric Intensive Care Unit,HCL NURSING,MAN28664,2422.48
Department of Health,Leicestershire Partnership NHS Trust,22/10/18,Nurse - Band 6 -Agency,Crisis Resolution,HCL NURSING,MAN28664,3547.81
Department of Health,Leicestershire Partnership NHS Trust,22/10/18,NURSE - BAND 2 - AGENCY,Griffin Ward (HPC),HCL NURSING,MAN28664,113.85
Department of Health,Leicestershire Partnership NHS Trust,22/10/18,NURSE - BAND 5 - AGENCY,Griffin Ward (HPC),HCL NURSING,MAN28664,3670.02
Department of Health,Leicestershire Partnership NHS Trust,22/10/18,NURSE - BAND 2 - AGENCY,Heather Ward,HCL NURSING,MAN28664,168.41
Department of Health,Leicestershire Partnership NHS Trust,22/10/18,NURSE - BAND 5 - AGENCY,Heather Ward,HCL NURSING,MAN28664,3265.11
Department of Health,Leicestershire Partnership NHS Trust,22/10/18,NURSE - BAND 2 - AGENCY,Maple Ward,HCL NURSING,MAN28664,109.19
Department of Health,Leicestershire Partnership NHS Trust,22/10/18,NURSE - BAND 2 - AGENCY,Mill Lodge,HCL NURSING,MAN28664,109.19
Department of Health,Leicestershire Partnership NHS Trust,22/10/18,NURSE - BAND 5 - AGENCY,Mill Lodge,HCL NURSING,MAN28664,1496.26
Department of Health,Leicestershire Partnership NHS Trust,22/10/18,NURSE - BAND 2 - AGENCY,Phoenix Ward (HPC),HCL NURSING,MAN28664,277.60
Department of Health,Leicestershire Partnership NHS Trust,22/10/18,NURSE - BAND 2 - AGENCY,Thornton Ward - Bradgate Unit,HCL NURSING,MAN28664,168.41
Department of Health,Leicestershire Partnership NHS Trust,22/10/18,NURSE - BAND 5 - AGENCY,Thornton Ward - Bradgate Unit,HCL NURSING,MAN28664,219.84
Department of Health,Leicestershire Partnership NHS Trust,22/10/18,NURSE - BAND 2 - AGENCY,Watermead Ward (Bradgate Unit),HCL NURSING,MAN28664,168.41
Department of Health,Leicestershire Partnership NHS Trust,22/10/18,Nurse - Band 6 -Agency,Adult City East CMHT - Merlyn Vaz,HCL NURSING,MAN28714A,1762.64
Department of Health,Leicestershire Partnership NHS Trust,22/10/18,Nurse - Band 6 -Agency,Adult County North West Leicestershire CMHT,HCL NURSING,MAN28714A,641.93
Department of Health,Leicestershire Partnership NHS Trust,22/10/18,NURSE - BAND 2 - AGENCY,Agnes Unit Management,HCL NURSING,MAN28714A,116.19
Department of Health,Leicestershire Partnership NHS Trust,22/10/18,NURSE - BAND 5 - AGENCY,Aston Ward (Bradgate Unit),HCL NURSING,MAN28714A,1752.71
Department of Health,Leicestershire Partnership NHS Trust,22/10/18,NURSE - BAND 2 - AGENCY,Beaumont Ward - Bradgate Unit,HCL NURSING,MAN28714A,284.16
Department of Health,Leicestershire Partnership NHS Trust,22/10/18,NURSE - BAND 2 - AGENCY,Belvoir Psychiatric Intensive Care Unit,HCL NURSING,MAN28714A,2059.63
Department of Health,Leicestershire Partnership NHS Trust,22/10/18,NURSE - BAND 5 - AGENCY,Belvoir Psychiatric Intensive Care Unit,HCL NURSING,MAN28714A,2052.10
Department of Health,Leicestershire Partnership NHS Trust,22/10/18,NURSE - BAND 2 - AGENCY,Bosworth Ward - Bradgate Unit,HCL NURSING,MAN28714A,168.41
Department of Health,Leicestershire Partnership NHS Trust,22/10/18,Nurse - Band 6 -Agency,Crisis Resolution,HCL NURSING,MAN28714A,3906.57
Department of Health,Leicestershire Partnership NHS Trust,22/10/18,NURSE - BAND 2 - AGENCY,Griffin Ward (HPC),HCL NURSING,MAN28714A,186.39
Department of Health,Leicestershire Partnership NHS Trust,22/10/18,NURSE - BAND 5 - AGENCY,Griffin Ward (HPC),HCL NURSING,MAN28714A,3536.76
Department of Health,Leicestershire Partnership NHS Trust,22/10/18,NURSE - BAND 2 - AGENCY,Heather Ward,HCL NURSING,MAN28714A,211.24
Department of Health,Leicestershire Partnership NHS Trust,22/10/18,NURSE - BAND 5 - AGENCY,Heather Ward,HCL NURSING,MAN28714A,2273.82
Department of Health,Leicestershire Partnership NHS Trust,22/10/18,Nurse - Band 6 -Agency,Mental Health Triage Team,HCL NURSING,MAN28714A,4765.34
Department of Health,Leicestershire Partnership NHS Trust,22/10/18,NURSE - BAND 2 - AGENCY,Mill Lodge,HCL NURSING,MAN28714A,1135.59
Department of Health,Leicestershire Partnership NHS Trust,22/10/18,NURSE - BAND 5 - AGENCY,Mill Lodge,HCL NURSING,MAN28714A,1548.11
Department of Health,Leicestershire Partnership NHS Trust,22/10/18,NURSE - BAND 2 - AGENCY,Phoenix Ward (HPC),HCL NURSING,MAN28714A,579.32
Department of Health,Leicestershire Partnership NHS Trust,22/10/18,NURSE - BAND 5 - AGENCY,Phoenix Ward (HPC),HCL NURSING,MAN28714A,343.34
Department of Health,Leicestershire Partnership NHS Trust,22/10/18,NURSE - BAND 2 - AGENCY,Watermead Ward (Bradgate Unit),HCL NURSING,MAN28714A,113.85
Department of Health,Leicestershire Partnership NHS Trust,22/10/18,NURSE - BAND 5 - AGENCY,Watermead Ward (Bradgate Unit),HCL NURSING,MAN28714A,1007.49
Department of Health,Leicestershire Partnership NHS Trust,22/10/18,Leased / Hired Vehicles,Acute (CAFS Onc Resp PT),AUTOMOTIVE LEASING LTD,504541059,71.58
Department of Health,Leicestershire Partnership NHS Trust,22/10/18,Leased / Hired Vehicles,Autism,AUTOMOTIVE LEASING LTD,504541059,661.78
Department of Health,Leicestershire Partnership NHS Trust,22/10/18,Prep_ LT1y -Prepayments Lease Cars,Balance Sheet Collection,AUTOMOTIVE LEASING LTD,504541059,56712.64
Department of Health,Leicestershire Partnership NHS Trust,22/10/18,Trade_Drs_LT1y -Lease Cars Invoicing Contrl Ac.,Balance Sheet Collection,AUTOMOTIVE LEASING LTD,504541059,1637.27
Department of Health,Leicestershire Partnership NHS Trust,22/10/18,Leased / Hired Vehicles,City Community Therapy,AUTOMOTIVE LEASING LTD,504541059,45.44
Department of Health,Leicestershire Partnership NHS Trust,22/10/18,Leased / Hired Vehicles,City North Leic HV Area 5,AUTOMOTIVE LEASING LTD,504541059,10.00
Department of Health,Leicestershire Partnership NHS Trust,22/10/18,Leased / Hired Vehicles,County 0-19 North West Leic HV,AUTOMOTIVE LEASING LTD,504541059,323.48
Department of Health,Leicestershire Partnership NHS Trust,22/10/18,Leased / Hired Vehicles,HIS,AUTOMOTIVE LEASING LTD,504541059,48.20
Department of Health,Leicestershire Partnership NHS Trust,22/10/18,Leased / Hired Vehicles,Immunisation,AUTOMOTIVE LEASING LTD,504541059,703.36
Department of Health,Leicestershire Partnership NHS Trust,22/10/18,Leased / Hired Vehicles,Mill Lodge,AUTOMOTIVE LEASING LTD,504541059,587.01
Department of Health,Leicestershire Partnership NHS Trust,22/10/18,Leased / Hired Vehicles,North West ICS,AUTOMOTIVE LEASING LTD,504541059,81.04
Department of Health,Leicestershire Partnership NHS Trust,22/10/18,Leased / Hired Vehicles,Procurement,AUTOMOTIVE LEASING LTD,504541059,139.35
Department of Health,Leicestershire Partnership NHS Trust,22/10/18,Leased / Hired Vehicles,South Leicestershire CMHT MHSOP,AUTOMOTIVE LEASING LTD,504541059,77.00
Department of Health,Leicestershire Partnership NHS Trust,22/10/18,Leased / Hired Vehicles,Tissue Viability,AUTOMOTIVE LEASING LTD,504541059,10.00
Department of Health,Leicestershire Partnership NHS Trust,22/10/18,Leased / Hired Vehicles,West Community Therapy,AUTOMOTIVE LEASING LTD,504541059,140.00
Department of Health,Leicestershire Partnership NHS Trust,23/10/18,GP IT Expenditure,Area Team,DELL COMPUTERS,7402471509,26400.00
Department of Health,Leicestershire Partnership NHS Trust,23/10/18,GP IT Expenditure,Area Team,DELL COMPUTERS,7402471547,29743.20
Department of Health,Leicestershire Partnership NHS Trust,23/10/18,WIP Project Not in BS - Information Technology,Work in Progress,DELL COMPUTERS,7402474842,28911.60
Department of Health,Leicestershire Partnership NHS Trust,24/10/18,Internal Printing (machines and ink),Unallocated Budgets,LEXMARK INTERNATIONAL LTD,900650005075,28485.39
Department of Health,Leicestershire Partnership NHS Trust,25/10/18,Community Budgets,County 0-19 Central Report,VOLUNTARY ACTION LEICESTER,22497,25000.00
Department of Health,Leicestershire Partnership NHS Trust,25/10/18,WIP Project Not in BS - Information Technology,Work in Progress,DELL COMPUTERS,7402478074,28911.60
Department of Health,Leicestershire Partnership NHS Trust,29/10/18,Crs_NHS_LT1y -Resus Inventory Supplied.,Balance Sheet Collection,NHS SUPPLY CHAIN (ST1450),1019147440,48153.34
Department of Health,Leicestershire Partnership NHS Trust,29/10/18,Landline Telephone Rental / Calls,"Beaumont Leys Health Centre (P94, LPT)",VIRGIN MEDIA BUSINESS,853083001/004/1018,423.38
Department of Health,Leicestershire Partnership NHS Trust,29/10/18,Landline Telephone Rental / Calls,Belgrave Health Centre (CHP),VIRGIN MEDIA BUSINESS,853083001/004/1018,400.90
Department of Health,Leicestershire Partnership NHS Trust,29/10/18,Landline Telephone Rental / Calls,"Bennion Centre (including Forest Grange Day Unit) (P8, LPT)",VIRGIN MEDIA BUSINESS,853083001/004/1018,7.74
Department of Health,Leicestershire Partnership NHS Trust,29/10/18,Landline Telephone Rental / Calls,"Bradgate Unit (including Glenvale day Unit) (P7, LPT)",VIRGIN MEDIA BUSINESS,853083001/004/1018,7920.72
Department of Health,Leicestershire Partnership NHS Trust,29/10/18,Landline Telephone Rental / Calls,Braunstone Health and Social Care Centre (Part) (PROPCO),VIRGIN MEDIA BUSINESS,853083001/004/1018,1419.81
Department of Health,Leicestershire Partnership NHS Trust,29/10/18,Landline Telephone Rental / Calls,Bridge Park Plaza - First Floor (LPT),VIRGIN MEDIA BUSINESS,853083001/004/1018,4811.16
Department of Health,Leicestershire Partnership NHS Trust,29/10/18,Landline Telephone Rental / Calls,"Coalville Community Hospital (P138, LPT)",VIRGIN MEDIA BUSINESS,853083001/004/1018,1284.74
Department of Health,Leicestershire Partnership NHS Trust,29/10/18,Landline Telephone Rental / Calls,"Coalville Health Centre (P121, LPT)",VIRGIN MEDIA BUSINESS,853083001/004/1018,362.29
Department of Health,Leicestershire Partnership NHS Trust,29/10/18,Landline Telephone Rental / Calls,County Hall,VIRGIN MEDIA BUSINESS,853083001/004/1018,1693.52
Department of Health,Leicestershire Partnership NHS Trust,29/10/18,Landline Telephone Rental / Calls,Estates & Facilities Central,VIRGIN MEDIA BUSINESS,853083001/004/1018,3824.44
Department of Health,Leicestershire Partnership NHS Trust,29/10/18,Landline Telephone Rental / Calls,"Evington Centre (P6, LPT)",VIRGIN MEDIA BUSINESS,853083001/004/1018,1575.17
Department of Health,Leicestershire Partnership NHS Trust,29/10/18,Landline Telephone Rental / Calls,HIS,VIRGIN MEDIA BUSINESS,853083001/004/1018,2889.13
Department of Health,Leicestershire Partnership NHS Trust,29/10/18,Landline Telephone Rental / Calls,"Hawthorne Centre - Coalville (P14, LPT)",VIRGIN MEDIA BUSINESS,853083001/004/1018,492.41
Department of Health,Leicestershire Partnership NHS Trust,29/10/18,Landline Telephone Rental / Calls,Hinckley & District Hospital (PROPCO),VIRGIN MEDIA BUSINESS,853083001/004/1018,1312.64
Department of Health,Leicestershire Partnership NHS Trust,29/10/18,Landline Telephone Rental / Calls,"Hinckley and Bosworth Community Hospital (Sunnyside) (P133, LPT)",VIRGIN MEDIA BUSINESS,853083001/004/1018,1043.34
Department of Health,Leicestershire Partnership NHS Trust,29/10/18,Landline Telephone Rental / Calls,Hood Park Leisure Centre Clinic,VIRGIN MEDIA BUSINESS,853083001/004/1018,53.56
Department of Health,Leicestershire Partnership NHS Trust,29/10/18,Landline Telephone Rental / Calls,"Hynca Lodge (P33, LPT)",VIRGIN MEDIA BUSINESS,853083001/004/1018,379.21
Department of Health,Leicestershire Partnership NHS Trust,29/10/18,Landline Telephone Rental / Calls,"Legion House, Ashby",VIRGIN MEDIA BUSINESS,853083001/004/1018,64.69
Department of Health,Leicestershire Partnership NHS Trust,29/10/18,Landline Telephone Rental / Calls,Loughborough Health Centre (PROPCO),VIRGIN MEDIA BUSINESS,853083001/004/1018,8.30
Department of Health,Leicestershire Partnership NHS Trust,29/10/18,Landline Telephone Rental / Calls,"Loughborough Hospital (P136, LPT)",VIRGIN MEDIA BUSINESS,853083001/004/1018,4413.13
Department of Health,Leicestershire Partnership NHS Trust,29/10/18,Landline Telephone Rental / Calls,Mawson House (LPT),VIRGIN MEDIA BUSINESS,853083001/004/1018,491.81
Department of Health,Leicestershire Partnership NHS Trust,29/10/18,Landline Telephone Rental / Calls,Melbourne Centre (Pt Grnd flr) (PROPCO),VIRGIN MEDIA BUSINESS,853083001/004/1018,6.45
Department of Health,Leicestershire Partnership NHS Trust,29/10/18,Landline Telephone Rental / Calls,Melton Mowbray Hospital (previously St. Mary's) (PROPCO),VIRGIN MEDIA BUSINESS,853083001/004/1018,1689.89
Department of Health,Leicestershire Partnership NHS Trust,29/10/18,Landline Telephone Rental / Calls,Merlyn Vaz Centre (CHP),VIRGIN MEDIA BUSINESS,853083001/004/1018,2032.44
Department of Health,Leicestershire Partnership NHS Trust,29/10/18,Landline Telephone Rental / Calls,"Mett Centre (P49, LPT)",VIRGIN MEDIA BUSINESS,853083001/004/1018,84.55
Department of Health,Leicestershire Partnership NHS Trust,29/10/18,Landline Telephone Rental / Calls,NSPCC Training Cente,VIRGIN MEDIA BUSINESS,853083001/004/1018,178.39
Department of Health,Leicestershire Partnership NHS Trust,29/10/18,Landline Telephone Rental / Calls,New Parks Health Centre (PROPCO),VIRGIN MEDIA BUSINESS,853083001/004/1018,2495.85
Department of Health,Leicestershire Partnership NHS Trust,29/10/18,Landline Telephone Rental / Calls,"OSL House (P54, LPT)",VIRGIN MEDIA BUSINESS,853083001/004/1018,3412.96
Department of Health,Leicestershire Partnership NHS Trust,29/10/18,Landline Telephone Rental / Calls,"Orchard Resource Centre (P15, LPT)",VIRGIN MEDIA BUSINESS,853083001/004/1018,505.06
Department of Health,Leicestershire Partnership NHS Trust,29/10/18,Landline Telephone Rental / Calls,Pasley Road Health Centre (PROPCO),VIRGIN MEDIA BUSINESS,853083001/004/1018,205.76
Department of Health,Leicestershire Partnership NHS Trust,29/10/18,Landline Telephone Rental / Calls,"Prince Philip House (P96, LPT)",VIRGIN MEDIA BUSINESS,853083001/004/1018,1735.11
Department of Health,Leicestershire Partnership NHS Trust,29/10/18,Landline Telephone Rental / Calls,Rushey Mead Health Centre (PROPCO),VIRGIN MEDIA BUSINESS,853083001/004/1018,183.17
Department of Health,Leicestershire Partnership NHS Trust,29/10/18,Landline Telephone Rental / Calls,"Shepshed Health Centre (P123, LPT)",VIRGIN MEDIA BUSINESS,853083001/004/1018,136.54
Department of Health,Leicestershire Partnership NHS Trust,29/10/18,Landline Telephone Rental / Calls,"Springfield Road Health Centre (P92, LPT)",VIRGIN MEDIA BUSINESS,853083001/004/1018,379.16
Department of Health,Leicestershire Partnership NHS Trust,29/10/18,Landline Telephone Rental / Calls,St Johns House (1st Floor) (PROPCO),VIRGIN MEDIA BUSINESS,853083001/004/1018,1523.02
Department of Health,Leicestershire Partnership NHS Trust,29/10/18,Landline Telephone Rental / Calls,St Peters Primary Care Centre (CHP),VIRGIN MEDIA BUSINESS,853083001/004/1018,2685.95
Department of Health,Leicestershire Partnership NHS Trust,29/10/18,Landline Telephone Rental / Calls,"Stewart House (P61, LPT)",VIRGIN MEDIA BUSINESS,853083001/004/1018,7.74
Department of Health,Leicestershire Partnership NHS Trust,29/10/18,Landline Telephone Rental / Calls,"Swithland House - London Road 352 (P44, LPT)",VIRGIN MEDIA BUSINESS,853083001/004/1018,356.80
Department of Health,Leicestershire Partnership NHS Trust,29/10/18,Landline Telephone Rental / Calls,"The Cedars (P19, LPT)",VIRGIN MEDIA BUSINESS,853083001/004/1018,595.06
Department of Health,Leicestershire Partnership NHS Trust,29/10/18,Landline Telephone Rental / Calls,"The Willows - Cordelia Close (P22, LPT)",VIRGIN MEDIA BUSINESS,853083001/004/1018,470.48
Department of Health,Leicestershire Partnership NHS Trust,29/10/18,Landline Telephone Rental / Calls,Uppingham Road Health Centre (PROPCO),VIRGIN MEDIA BUSINESS,853083001/004/1018,232.49
Department of Health,Leicestershire Partnership NHS Trust,29/10/18,Landline Telephone Rental / Calls,"Valentine Centre (P3, LPT)",VIRGIN MEDIA BUSINESS,853083001/004/1018,1761.53
Department of Health,Leicestershire Partnership NHS Trust,29/10/18,Landline Telephone Rental / Calls,Warren Park Way 25 (PROPCO),VIRGIN MEDIA BUSINESS,853083001/004/1018,994.76
Department of Health,Leicestershire Partnership NHS Trust,29/10/18,Landline Telephone Rental / Calls,"Westcotes Group -Westcotes House (P78, LPT)",VIRGIN MEDIA BUSINESS,853083001/004/1018,1478.72
Department of Health,Leicestershire Partnership NHS Trust,29/10/18,Landline Telephone Rental / Calls,Westcotes Health Centre (CHP),VIRGIN MEDIA BUSINESS,853083001/004/1018,773.01
Department of Health,Leicestershire Partnership NHS Trust,29/10/18,Landline Telephone Rental / Calls,"Winstanley Drive Health Centre (P8, LPT)",VIRGIN MEDIA BUSINESS,853083001/004/1018,416.09
Department of Health,Leicestershire Partnership NHS Trust,30/10/18,Computer License  Fees,CHS - Head of Nursing,SOFTCAT PLC,INV02052857,182917.20
